bitfinex-derivatives/quotes_ETHF0:USTF0_20250309
["timestamp","ask_amount","ask_price","bid_price","bid_amount"]
[1741551874777,0.97811,2045.2,2045.0,4.18595]
[1741551874977,3.0396,2045.5,2045.1,0.97812]
[1741551875580,0.97807,2045.2,2045.1,0.97812]
[1741551875778,0.97806,2045.3,2045.1,0.97812]
[1741551875972,0.97806,2045.3,2045.2,0.97806]
[1741551876174,1.4679,2045.5,2045.0,3.2078]
[1741551876381,0.97801,2045.4,2045.2,0.97803]
[1741551876581,2.44586,2045.5,2045.3,0.97798]
[1741551876776,0.97797,2045.4,2045.3,0.97798]
[1741551876972,1.4679,2045.5,2045.0,5.65319]
[1741551877185,0.97794,2045.5,2045.4,0.97795]
[1741551878381,7.90698,2045.8,2045.3,3.2078]
[1741551878793,0.97795,2045.5,2045.4,0.97797]
[1741551879377,5.4625,2045.8,2045.3,3.2078]
[1741551879682,0.97794,2045.5,2045.4,0.97795]
[1741551880382,4.07866534,2045.9,2045.8,0.97778]
[1741551880383,1.63430534,2045.9,2045.8,0.97778]
[1741551880590,1.47094071,2046.2,2045.7,2.44459]
[1741551880787,0.97764,2046.1,2046.0,0.97768]
[1741551881191,0.97769,2046.0,2045.9,3.2078]
[1741551881985,1.47094071,2046.2,2045.6,2.446]
[1741551881986,0.97778,2045.8,2045.7,0.97782]
[1741551882188,4.67874071,2046.2,2045.6,5.6538]
[1741551882384,1.47094071,2046.2,2045.6,5.6538]
[1741551882585,0.97773,2046.0,2045.8,0.97775]
[1741551882786,0.97774,2045.9,2045.8,0.97775]
[1741551884691,0.9777,2046.0,2045.9,0.97772]
[1741551884883,0.97773,2046.0,2045.8,0.97775]
[1741551885286,0.97768,2046.1,2045.6,8.09848]
[1741551885593,0.97777,2045.9,2045.6,5.6538]
[1741551885786,0.97777,2045.9,2045.8,0.97778]
[1741551886386,7.12275071,2046.2,2045.6,5.6538]
[1741551886688,0.97782,2045.8,2045.7,0.97783]
[1741551886888,0.97783,2045.7,2045.6,6.63165]
[1741551887090,0.97783,2045.7,2045.6,5.6538]
[1741551887279,0.97783,2045.7,2045.6,4.18568]
[1741551887484,1.5242,2045.9,2045.6,3.2078]
[1741551887788,0.9778,2045.8,2045.7,0.97781]
[1741551887991,0.97783,2045.7,2045.6,4.18565]
[1741551888293,0.97783,2045.7,2045.6,3.2078]
[1741551888686,0.97794,2045.5,2045.3,3.2078]
[1741551888888,0.97794,2045.5,2045.4,0.97797]
[1741551889090,2.44473,2045.6,2045.1,3.9736]
[1741551889295,2.44483,2045.5,2044.9,0.00734071]
[1741551889584,3.9828,2045.4,2044.9,0.00734071]
[1741551889784,0.97817,2045.0,2044.9,0.00734071]
[1741551889995,1.5889,2045.3,2044.9,0.00734071]
[1741551890195,1.61314071,2045.2,2044.9,0.00734071]
[1741551890391,0.97817,2045.0,2044.9,0.98555071]
[1741551890694,0.97817,2045.0,2044.9,0.00734071]
[1741551891583,1.61314071,2045.2,2044.9,0.00734071]
[1741551891788,0.98543071,2045.2,2045.1,0.97812]
[1741551891988,0.00734071,2045.2,2045.1,0.97812]
[1741551892790,0.98541071,2045.2,2045.1,0.97812]
[1741551892996,0.00734071,2045.2,2045.1,0.97812]
[1741551894090,0.98541071,2045.2,2045.1,0.97812]
[1741551894291,0.98541071,2045.2,2045.0,4.18593]
[1741551894492,0.98541071,2045.2,2045.1,0.97812]
[1741551894689,0.97817,2045.0,2044.9,0.00734071]
[1741551895193,1.5299,2045.1,2044.4,4.769]
[1741551895194,2.1439,2045.1,2044.4,4.769]
[1741551895390,0.97841,2044.5,2044.4,4.769]
[1741551895585,0.97841,2044.5,2044.4,5.74745]
[1741551895791,0.9783,2044.8,2044.6,0.97834]
[1741551895993,0.97827,2044.8,2044.4,4.769]
[1741551896392,0.97827,2044.8,2044.4,4.77634071]
[1741551896591,3.0706,2044.9,2044.7,0.97829]
[1741551896795,0.97828,2044.8,2044.6,0.97833]
[1741551896996,3.0706,2044.9,2044.7,0.97831]
[1741551897187,4.04883,2044.9,2044.5,0.97841]
[1741551897391,4.04883,2044.9,2044.7,0.97827]
[1741551897891,4.04883,2044.9,2044.7,4.18607]
[1741551898595,0.97823,2044.9,2044.7,3.2078]
[1741551899091,0.614,2045.1,2044.7,3.2078]
[1741551899290,0.97817,2045.0,2044.9,0.9782]
[1741551899888,0.97817,2045.0,2044.8,0.97823]
[1741551900101,0.97813,2045.1,2045.0,0.97815]
[1741551900387,1.50374071,2045.2,2044.8,0.97822]
[1741551900591,0.97821,2044.9,2044.8,0.97822]
[1741551900791,1.50374071,2045.2,2044.7,3.2078]
[1741551900995,0.97819,2045.0,2044.9,0.97819]
[1741551901189,0.00734071,2045.2,2045.1,0.97812]
[1741551902188,0.00734071,2045.2,2045.0,5.6518]
[1741551902395,0.00734071,2045.2,2045.1,0.97812]
[1741551902990,0.00734071,2045.2,2045.0,6.62993]
[1741551903301,0.00734071,2045.2,2045.1,0.97812]
[1741551910496,0.98541071,2045.2,2045.1,0.97812]
[1741551910695,0.97812,2045.1,2045.0,3.2078]
[1741551911201,0.97821,2044.9,2044.8,3.42125]
[1741551911599,3.0865,2045.1,2044.8,3.42125]
[1741551911900,0.97826,2044.8,2044.7,3.2078]
[1741551912100,3.2078,2045.0,2044.4,0.00734071]
[1741551912296,0.97831,2044.8,2044.6,0.97835]
[1741551912600,0.97831,2044.7,2044.6,4.18615]
[1741551912998,1.4961,2044.9,2044.6,3.2078]
[1741551912999,2.47432,2044.9,2044.6,3.2078]
[1741551913303,2.47432,2044.9,2044.7,0.97827]
[1741551913697,2.47432,2044.9,2044.8,0.97826]
[1741551913998,1.4961,2044.9,2044.7,0.97828]
[1741551914203,2.47433,2044.9,2044.6,3.2078]
[1741551914390,1.4961,2044.9,2044.8,0.97826]
[1741551915297,1.4961,2044.9,2044.6,3.2078]
[1741551915298,0.97829,2044.8,2044.6,3.2078]
[1741551915502,2.47435,2044.9,2044.7,0.97831]
[1741551915694,2.47435,2044.9,2044.8,0.97826]
[1741551915895,2.47435,2044.9,2044.7,0.97827]
[1741551916204,0.97831,2044.7,2044.6,3.2078]
[1741551918296,0.97829,2044.8,2044.7,0.97829]
[1741551918494,2.47433,2044.9,2044.8,0.97826]
[1741551918699,0.9783,2044.8,2044.7,0.9783]
[1741551919307,2.47434,2044.9,2044.8,0.97826]
[1741551919504,0.97826,2044.8,2044.6,4.18612]
[1741551919698,1.4961,2044.9,2044.6,4.18612]
[1741551920002,0.97831,2044.7,2044.6,4.18615]
[1741551920198,0.97831,2044.7,2044.6,3.2078]
[1741551920593,0.97831,2044.7,2044.6,4.18616]
[1741551920796,0.97831,2044.7,2044.6,3.2078]
[1741551920995,0.97829,2044.8,2044.6,4.18613]
[1741551921198,1.4961,2044.9,2044.7,0.97828]
[1741551921400,0.97829,2044.8,2044.6,4.18612]
[1741551922701,0.97831,2044.7,2044.6,4.18612]
[1741551922905,1.4961,2044.9,2044.6,4.18612]
[1741551923093,0.9783,2044.8,2044.6,4.18612]
[1741551923697,0.97831,2044.7,2044.6,4.18612]
[1741551923899,1.4961,2044.9,2044.6,4.18612]
[1741551924100,0.97831,2044.7,2044.6,4.18612]
[1741551924605,0.9783,2044.8,2044.6,4.18612]
[1741551925006,0.9783,2044.8,2044.7,0.97831]
[1741551925202,0.9783,2044.8,2044.6,4.18614]
[1741551925803,0.97831,2044.7,2044.6,4.18614]
[1741551926308,1.4961,2044.9,2044.6,4.18614]
[1741551926507,2.442,2045.0,2044.6,3.2078]
[1741551926706,0.97824,2044.9,2044.7,0.97828]
[1741551926904,3.4202,2045.0,2044.8,0.97826]
[1741551927102,3.4202,2045.0,2044.6,3.2078]
[1741551927302,3.4202,2045.0,2044.9,0.97821]
[1741551927606,2.442,2045.0,2044.8,0.97822]
[1741551927807,0.97821,2044.9,2044.8,0.97822]
[1741551928307,0.97831,2044.7,2044.6,3.2078]
[1741551928505,0.97831,2044.7,2044.4,0.00734071]
[1741551928506,0.97841,2044.5,2044.4,0.00734071]
[1741551930814,0.9786,2044.1,2044.0,0.97862]
[1741551931003,2.4461,2044.5,2044.0,0.97862]
[1741551931208,0.97858,2044.2,2044.0,0.97862]
[1741551931706,3.2078,2044.1,2043.6,1.4877]
[1741551931899,4.11904,2044.0,2043.9,0.00734071]
[1741551932104,3.14774071,2044.0,2043.5,3.2078]
[1741551932305,5.65475,2043.8,2043.1,0.97905]
[1741551932610,8.09575,2043.8,2043.1,0.97905]
[1741551932799,0.97892,2043.5,2043.3,0.97896]
[1741551932999,0.97892,2043.5,2043.0,3.2078]
[1741551933208,5.6488,2043.8,2043.0,3.2078]
[1741551933401,0.97896,2043.4,2043.2,0.97901]
[1741551933609,0.97891,2043.5,2043.3,0.97896]
[1741551933807,5.6488,2043.8,2043.3,0.97896]
[1741551934005,3.74590534,2043.7,2043.0,3.2078]
[1741551934204,2.44761,2043.2,2042.4,3.2078]
[1741551934416,3.2078,2042.9,2042.3,0.36656231]
[1741551934615,3.2078,2042.9,2042.1,22.08185668]
[1741551934816,0.97927,2042.7,2042.1,22.08185668]
[1741551935111,0.97927,2042.7,2042.4,0.97941]
[1741551935310,0.97932,2042.6,2042.3,0.97944]
[1741551935614,0.97937,2042.5,2042.4,3.2078]
[1741551935814,0.97951,2042.2,2042.1,22.08185668]
[1741551936010,0.97951,2042.2,2042.1,3.2078]
[1741551936319,2.9497,2042.4,2041.9,0.97962]
[1741551936618,0.614,2042.6,2042.3,3.2078]
[1741551936820,1.59333,2042.6,2042.4,0.97939]
[1741551937111,0.614,2042.6,2042.3,3.2078]
[1741551937313,0.97941,2042.4,2042.3,3.2078]
[1741551937518,0.614,2042.6,2042.3,3.2078]
[1741551937919,1.59333,2042.6,2042.4,0.97939]
[1741551938216,0.614,2042.6,2042.3,3.2078]
[1741551938411,0.97941,2042.4,2042.3,3.2078]
[1741551939313,0.614,2042.6,2042.0,3.2078]
[1741551939511,0.614,2042.6,2041.7,3.1106]
[1741551939512,0.9797,2041.8,2041.7,3.1106]
[1741551940010,1.5738,2042.3,2041.7,3.1106]
[1741551940215,0.97952,2042.2,2042.0,0.97958]
[1741551940417,4.0158,2042.6,2042.0,3.2078]
[1741551941021,0.97952,2042.2,2042.0,4.18738]
[1741551941219,0.97949,2042.3,2042.1,0.97955]
[1741551941423,0.97943,2042.4,2042.2,0.97949]
[1741551942121,4.0158,2042.6,2042.0,3.2078]
[1741551942416,0.00734071,2042.8,2042.3,3.2078]
[1741551942814,0.00734071,2042.8,2042.6,3.2078]
[1741551943314,0.00734071,2042.8,2042.7,0.97927]
[1741551943511,0.00734071,2042.8,2042.6,3.2078]
[1741551943713,0.00734071,2042.8,2042.7,0.97927]
[1741551943911,0.00734071,2042.8,2042.6,3.2078]
[1741551944114,0.00734071,2042.8,2042.7,0.97927]
[1741551944320,0.97929,2042.7,2042.5,0.97934]
[1741551944518,0.00734071,2042.8,2042.4,2.442]
[1741551944713,0.97935,2042.6,2042.4,3.4214]
[1741551944919,0.00734071,2042.8,2042.5,0.97934]
[1741551945117,0.97927,2042.7,2042.6,3.2078]
[1741551946916,0.98657071,2042.8,2042.6,3.2078]
[1741551947122,0.00734071,2042.8,2042.6,3.2078]
[1741551947320,0.00734071,2042.8,2042.7,0.97927]
[1741551948023,0.97927,2042.7,2042.6,4.18711]
[1741551948211,0.00734071,2042.8,2042.7,0.97927]
[1741551948616,0.98656071,2042.8,2042.7,1.4648]
[1741551948824,0.00734071,2042.8,2042.7,1.4648]
[1741551949122,0.98656071,2042.8,2042.7,2.44407]
[1741551950128,0.00734071,2042.8,2042.7,2.44407]
[1741551950329,0.00734071,2042.8,2042.7,1.4648]
[1741551950525,0.00734071,2042.8,2042.6,3.2078]
[1741551950526,0.97927,2042.7,2042.6,3.2078]
[1741551950828,0.97927,2042.7,2042.6,4.18712]
[1741551951024,0.98657071,2042.8,2042.7,0.97927]
[1741551951331,0.00734071,2042.8,2042.7,0.97927]
[1741551952029,0.00734071,2042.8,2042.7,2.48377]
[1741551952334,11.90444605,2042.8,2041.5,5.65732]
[1741551952528,11.90444605,2042.8,2041.6,1.5619]
[1741551952529,5.65642,2042.4,2041.6,1.5619]
[1741551952830,5.65642,2042.4,2041.9,0.97962]
[1741551953125,3.2078,2042.4,2041.8,3.2078]
[1741551953430,0.97984,2041.5,2041.3,0.97991]
[1741551953627,2.44902,2042.0,2041.3,0.97992]
[1741551953628,2.44918,2041.9,2041.3,0.97992]
[1741551953840,0.00734071,2041.6,2041.4,0.97986]
[1741551954124,0.98715071,2041.6,2041.4,0.97989]
[1741551954326,0.00734071,2041.6,2041.5,4.18764]
[1741551954625,0.98714071,2041.6,2041.5,3.2078]
[1741551955428,0.97991,2041.4,2041.2,0.97996]
[1741551956532,0.97991,2041.4,2041.1,3.2078]
[1741551956533,0.98717071,2041.6,2041.1,3.2078]
[1741551956725,0.98717071,2041.6,2041.4,0.97987]
[1741551956926,0.98717071,2041.6,2041.5,0.97984]
[1741551956927,0.98714071,2041.6,2041.5,0.97984]
[1741551957124,0.00734071,2041.6,2041.5,0.97984]
[1741551958332,3.2078,2042.4,2041.6,2.4495]
[1741551958530,0.97951,2042.2,2042.0,0.97959]
[1741551958731,0.97945,2042.4,2041.8,3.2078]
[1741551958924,0.97945,2042.4,2042.2,0.97949]
[1741551959130,1.4766,2042.6,2042.2,3.2078]
[1741551959331,0.97928,2042.7,2042.5,0.97936]
[1741551959530,0.00734071,2042.6,2042.2,3.2078]
[1741551959831,0.97936,2042.5,2042.4,0.00734071]
[1741551960252,0.98667071,2042.6,2042.4,0.00734071]
[1741551960531,0.97936,2042.5,2042.4,0.00734071]
[1741551961642,4.18716,2042.5,2042.4,0.00734071]
[1741551962335,0.97936,2042.5,2042.4,0.00734071]
[1741551964146,4.18716,2042.5,2042.4,0.00734071]
[1741551965245,0.97936,2042.5,2042.4,0.00734071]
[1741551965438,3.21514071,2042.6,2042.5,0.97936]
[1741551965639,0.00734071,2042.6,2042.5,4.18716]
[1741551966338,0.00734071,2042.6,2042.4,3.11614071]
[1741551966339,0.00734071,2042.6,2042.4,0.00734071]
[1741551966540,0.97936,2042.5,2042.4,0.00734071]
[1741551966744,0.00734071,2042.6,2042.4,0.00734071]
[1741551967041,0.00734071,2042.6,2042.5,0.97936]
[1741551967944,0.00734071,2042.6,2042.5,4.18716]
[1741551968140,0.97909,2043.1,2042.5,4.18716]
[1741551968443,1.5688,2043.2,2042.8,3.2078]
[1741551968650,1.5196,2043.3,2043.1,0.97908]
[1741551968855,1.5196,2043.3,2043.2,0.97903]
[1741551969058,3.2078,2043.5,2043.2,3.2078]
[1741551969260,0.00734071,2043.5,2043.4,0.97893]
[1741551971354,0.00734071,2043.5,2043.2,3.2078]
[1741551971553,0.97895,2043.4,2043.2,0.97901]
[1741551971752,0.979,2043.3,2043.1,3.41906]
[1741551971957,0.97903,2043.2,2043.1,2.44]
[1741551972151,0.97912,2043.1,2042.9,4.18696]
[1741551972352,0.97902,2043.3,2042.9,3.2078]
[1741551972556,3.0458,2043.4,2042.9,3.2078]
[1741551972751,0.9791,2043.1,2042.9,4.18696]
[1741551972957,0.97912,2043.0,2042.9,3.2078]
[1741551973255,5.49322,2043.4,2042.6,3.2078]
[1741551973256,3.2078,2043.3,2042.6,3.2078]
[1741551973460,0.97916,2043.0,2042.6,3.2078]
[1741551973764,0.97916,2043.0,2042.5,0.97934]
[1741551973765,0.97929,2042.7,2042.5,0.97934]
[1741551973963,0.97934,2042.6,2042.4,2.49502071]
[1741551974157,1.4953,2043.0,2042.4,3.96412071]
[1741551974459,0.614,2043.3,2042.6,5.65606]
[1741551974655,0.97901,2043.3,2043.1,0.97906]
[1741551974857,1.5416,2043.4,2043.2,3.2078]
[1741551975049,0.00734071,2043.5,2043.4,0.97893]
[1741551975565,0.9787,2043.9,2043.7,0.97877]
[1741551975967,3.147,2044.2,2043.7,0.97877]
[1741551976262,3.147,2044.2,2043.6,3.2078]
[1741551976463,0.97879,2043.7,2043.6,3.2078]
[1741551977256,3.2078,2043.9,2043.4,0.00734071]
[1741551977451,2.56347,2043.6,2043.4,0.98627071]
[1741551977854,0.97888,2043.5,2043.4,0.00734071]
[1741551978254,1.5846,2043.6,2043.4,0.00734071]
[1741551978759,0.97888,2043.5,2043.4,0.00734071]
[1741551979360,1.5846,2043.6,2043.4,0.00734071]
[1741551979572,2.56347,2043.6,2043.4,0.00734071]
[1741551979760,1.5846,2043.6,2043.4,0.00734071]
[1741551979961,1.5846,2043.6,2043.4,0.98627071]
[1741551980259,3.2078,2043.8,2043.4,0.00734071]
[1741551980462,2.1815,2044.0,2043.8,0.97872]
[1741551980760,0.00734071,2044.1,2044.0,0.97864]
[1741551981352,0.00734071,2044.1,2044.0,3.41764]
[1741551981657,0.00734071,2044.1,2044.0,0.97864]
[1741551982465,0.00734071,2044.1,2043.7,3.9296]
[1741551982664,0.00734071,2044.1,2044.0,0.97864]
[1741551983956,7.1e-07,2044.1,2044.0,0.97864]
[1741551984159,0.97819,2045.0,2044.4,2.44614]
[1741551984461,1.5443,2045.0,2044.7,3.2078]
[1741551984664,1.5443,2045.0,2044.3,5.4697]
[1741551984864,0.97828,2044.8,2044.6,0.97834]
[1741551985166,0.97837,2044.6,2044.4,0.97844]
[1741551985463,1.577,2044.8,2044.5,0.00734071]
[1741551985664,1.577,2044.8,2044.7,0.97831]
[1741551985865,1.46094071,2044.9,2044.5,0.00734071]
[1741551986067,3.03164071,2044.9,2044.5,0.00734071]
[1741551986460,0.97835,2044.7,2044.5,0.98574071]
[1741551986863,0.97828,2044.8,2044.5,0.98570071]
[1741551987065,0.97828,2044.8,2044.5,0.00734071]
[1741551987463,4.00988071,2044.9,2044.5,0.00734071]
[1741551987663,0.97829,2044.8,2044.5,4.19351071]
[1741551987961,0.97836,2044.6,2044.5,3.21514071]
[1741551988869,0.97836,2044.6,2044.5,0.00734071]
[1741551989169,0.97855,2044.2,2044.0,4.99333]
[1741551989472,4.7888,2044.5,2044.0,4.0147]
[1741551989767,4.7888,2044.5,2044.0,2.55634]
[1741551989972,0.97862,2044.1,2043.9,3.2078]
[1741551990265,0.97856,2044.2,2044.0,0.97863]
[1741551990465,0.97856,2044.2,2044.0,0.97864]
[1741551990669,0.97863,2044.1,2043.9,4.18647]
[1741551991065,0.97857,2044.2,2044.0,0.97862]
[1741551991261,0.97853,2044.3,2044.1,0.97857]
[1741551991666,1.4973,2044.4,2044.1,0.97857]
[1741551991866,0.97854,2044.3,2044.1,0.97857]
[1741551992767,2.55944,2044.5,2044.2,3.2078]
[1741551992973,2.55944,2044.5,2044.3,0.97847]
[1741551993168,2.55944,2044.5,2044.4,0.97845]
[1741551993467,4.18609,2044.8,2044.6,0.97836]
[1741551993670,3.2078,2044.8,2044.5,3.2078]
[1741551993876,4.18608,2044.8,2044.6,0.97833]
[1741551994369,3.2078,2044.8,2044.7,0.97831]
[1741551994568,0.97832,2044.7,2044.5,4.18618]
[1741551994968,0.97836,2044.6,2044.5,3.2078]
[1741551995169,0.97848,2044.4,2044.1,5.6448]
[1741551995368,0.97848,2044.4,2044.2,0.97853]
[1741551995568,1.5796,2044.7,2044.1,5.6448]
[1741551995774,0.97845,2044.5,2044.2,0.97855]
[1741551995970,1.5796,2044.7,2044.2,0.97855]
[1741551996170,1.5796,2044.7,2044.1,6.62335]
[1741551996369,0.97852,2044.3,2044.1,6.62337]
[1741551996572,0.97852,2044.3,2044.1,4.18637]
[1741551997575,1.498,2044.4,2044.3,0.9785]
[1741551999073,1.498,2044.4,2044.1,3.2078]
[1741551999277,3.09,2044.4,2044.1,3.2078]
[1741551999579,0.97855,2044.2,2044.1,4.18639]
[1741551999779,4.06848,2044.4,2044.3,0.9785]
[1741551999979,0.97851,2044.3,2044.2,0.97852]
[1741552000675,3.09,2044.4,2044.1,3.2078]
[1741552000876,0.97852,2044.3,2044.2,0.97853]
[1741552001072,4.06847,2044.4,2044.3,0.9785]
[1741552001573,0.97851,2044.3,2044.2,0.97853]
[1741552001776,3.09,2044.4,2044.2,0.97853]
[1741552001974,0.97855,2044.2,2044.1,4.18637]
[1741552002176,0.9785,2044.3,2044.2,0.97854]
[1741552002877,0.97855,2044.2,2044.1,4.18637]
[1741552003472,5.53616,2044.4,2043.9,3.0557]
[1741552003773,0.97869,2043.9,2043.8,0.00734071]
[1741552006082,4.07699,2043.9,2043.8,0.00734071]
[1741552010382,4.07699,2043.9,2043.4,3.1476]
[1741552010383,7.0983,2043.9,2043.4,3.1476]
[1741552010682,2.44691,2043.8,2043.2,5.6428]
[1741552010885,0.97894,2043.4,2043.3,0.97895]
[1741552011181,2.4471,2043.6,2043.2,3.2078]
[1741552011483,0.97898,2043.3,2043.2,4.18681]
[1741552011682,0.97897,2043.4,2043.3,0.97897]
[1741552011896,0.97898,2043.3,2043.2,4.19414071]
[1741552012384,0.97898,2043.4,2043.3,0.97897]
[1741552012584,0.00734071,2043.6,2043.2,3.21514071]
[1741552012778,0.97898,2043.3,2043.2,4.19414071]
[1741552013681,0.00734071,2043.6,2043.2,4.19414071]
[1741552013878,0.97897,2043.4,2043.3,0.97898]
[1741552014279,0.97898,2043.3,2043.2,4.19413071]
[1741552014576,0.97898,2043.3,2043.2,0.00734071]
[1741552015082,0.97917,2042.9,2042.8,1.448]
[1741552015283,0.97922,2042.8,2042.7,0.97925]
[1741552015587,0.97922,2042.8,2042.6,5.77157]
[1741552015787,0.97919,2042.9,2042.7,0.97922]
[1741552016286,0.9791,2043.1,2042.9,0.97913]
[1741552016483,8.3193,2043.4,2042.9,3.2078]
[1741552016683,2.1153,2043.4,2042.9,5.65572]
[1741552016882,0.97899,2043.3,2043.1,0.97904]
[1741552017084,0.97899,2043.3,2043.2,0.97903]
[1741552017288,1.5013,2043.4,2043.0,1.5033]
[1741552017475,0.97927,2042.7,2042.6,0.00734071]
[1741552019885,2.57047,2042.7,2042.6,0.00734071]
[1741552020182,2.57047,2042.7,2042.2,2.51279]
[1741552020183,2.4483,2042.6,2042.0,3.2078]
[1741552020482,2.44854,2042.4,2041.8,0.36057126]
[1741552020684,0.97987,2041.5,2041.2,0.97995]
[1741552020887,0.97987,2041.5,2041.1,3.2078]
[1741552021288,0.97987,2041.5,2041.3,0.97994]
[1741552021485,0.00734071,2041.5,2041.2,0.97997]
[1741552021690,0.00734071,2041.5,2041.3,0.9799]
[1741552022093,0.00734071,2041.5,2041.4,4.18769]
[1741552023589,0.98718071,2041.5,2041.4,3.2078]
[1741552024988,0.00734071,2041.5,2041.4,3.2078]
[1741552025186,0.00734071,2041.5,2041.4,4.18769]
[1741552025384,0.00734071,2041.5,2041.4,3.2078]
[1741552026082,0.00734071,2041.5,2041.4,4.18769]
[1741552027193,0.00734071,2041.5,2041.4,3.2078]
[1741552027488,0.00734071,2041.5,2041.4,4.18769]
[1741552030189,0.00734071,2041.5,2041.4,3.2078]
[1741552030391,0.00734071,2041.5,2041.4,4.18769]
[1741552031490,7.1089,2042.4,2041.7,2.44932]
[1741552031797,0.97957,2042.1,2041.9,4.18741]
[1741552032290,7.1089,2042.4,2041.6,4.7291]
[1741552032490,9.55748,2042.4,2041.7,0.97973]
[1741552032694,9.55748,2042.4,2041.6,4.7291]
[1741552032695,0.97975,2041.7,2041.6,4.7291]
[1741552032995,0.97969,2041.9,2041.7,0.97973]
[1741552033393,0.97964,2042.0,2041.8,0.97968]
[1741552033593,3.2078,2042.1,2041.6,4.7291]
[1741552033786,0.00734071,2042.2,2041.9,3.2078]
[1741552033987,5.6438,2042.9,2042.1,0.97956]
[1741552034296,0.97926,2042.8,2042.6,4.18711]
[1741552034496,3.2078,2042.9,2042.6,4.18711]
[1741552034702,0.97924,2042.8,2042.6,4.18709]
[1741552034888,3.2078,2042.9,2042.6,3.2078]
[1741552035089,0.97904,2043.2,2043.0,0.97909]
[1741552035393,0.00734071,2043.0,2042.9,0.97914]
[1741552036299,0.00734071,2043.0,2042.6,3.2078]
[1741552036591,0.00734071,2043.0,2042.9,0.97917]
[1741552036794,0.00734071,2043.0,2042.8,0.9792]
[1741552036996,0.00734071,2043.0,2042.9,0.97917]
[1741552037599,0.00734071,2043.0,2042.9,4.18697]
[1741552037801,0.98646071,2043.0,2042.9,3.2078]
[1741552037995,0.98646071,2043.0,2042.7,0.97923]
[1741552038191,0.97926,2042.8,2042.6,4.18709]
[1741552038392,0.00734071,2043.0,2042.6,4.18711]
[1741552038601,0.97925,2042.8,2042.6,4.18711]
[1741552038801,0.98651071,2043.0,2042.6,3.2078]
[1741552039003,0.00734071,2043.0,2042.6,3.2078]
[1741552039500,0.00734071,2043.0,2042.7,0.97923]
[1741552039501,0.97917,2042.9,2042.7,0.97923]
[1741552040104,0.97923,2042.8,2042.6,3.2078]
[1741552040304,0.00734071,2043.0,2042.7,2.435]
[1741552040498,0.00734071,2043.0,2042.9,4.18697]
[1741552041003,0.00734071,2043.0,2042.6,3.2078]
[1741552041193,0.97932,2042.6,2042.5,0.00734071]
[1741552041793,4.97932,2042.6,2042.5,0.00734071]
[1741552041998,8.04048,2042.6,2042.0,2.45908]
[1741552042207,0.97951,2042.2,2042.0,5.66688]
[1741552042394,3.2078,2042.5,2042.0,4.6873]
[1741552042704,0.97938,2042.5,2042.3,0.97942]
[1741552042907,0.97968,2041.9,2041.7,4.18753]
[1741552043204,0.97946,2042.3,2042.2,0.00734071]
[1741552043403,3.2078,2042.3,2041.7,3.2078]
[1741552043807,0.97954,2042.2,2042.0,0.97958]
[1741552044199,4.5005,2042.4,2041.7,3.2078]
[1741552044513,0.97951,2042.2,2042.0,0.97956]
[1741552044703,4.5005,2042.4,2041.7,3.2078]
[1741552045002,5.47994,2042.4,2042.2,0.97949]
[1741552045201,4.0241,2042.7,2042.0,3.2078]
[1741552045402,4.0241,2042.7,2042.1,1.5111]
[1741552045609,0.9794,2042.5,2042.1,2.49063]
[1741552045798,3.2078,2042.6,2042.1,1.5111]
[1741552046002,0.97951,2042.2,2042.1,1.5111]
[1741552046199,0.97949,2042.3,2042.1,1.5111]
[1741552046405,0.97951,2042.2,2042.1,1.5111]
[1741552046703,0.97949,2042.3,2042.1,1.5111]
[1741552046906,0.9796,2042.0,2041.9,4.6869]
[1741552047508,0.9796,2042.0,2041.9,1.4791]
[1741552047695,0.97973,2041.8,2041.6,6.1568]
[1741552047894,0.97975,2041.7,2041.6,3.2078]
[1741552048499,0.00734071,2041.9,2041.6,3.2078]
[1741552048807,0.97975,2041.7,2041.6,3.2078]
[1741552049005,0.00734071,2041.9,2041.6,3.2078]
[1741552049210,0.98703071,2041.9,2041.7,0.97974]
[1741552050107,0.98701071,2041.9,2041.7,0.97972]
[1741552050303,0.9797,2041.8,2041.6,3.2078]
[1741552050608,0.9797,2041.8,2041.6,4.18755]
[1741552050907,0.98703071,2041.9,2041.7,0.97973]
[1741552051302,0.97971,2041.8,2041.6,4.18756]
[1741552051608,0.00734071,2041.9,2041.8,0.9797]
[1741552052211,0.00734071,2041.9,2041.6,3.2078]
[1741552052509,0.00734071,2041.9,2041.7,0.97974]
[1741552052713,0.98703071,2041.9,2041.7,0.97974]
[1741552053407,0.97972,2041.8,2041.6,4.18756]
[1741552054205,0.00734071,2041.9,2041.6,3.2078]
[1741552054504,0.00734071,2041.9,2041.7,0.97973]
[1741552054907,0.98702071,2041.9,2041.7,0.97973]
[1741552055211,0.98702071,2041.9,2041.8,0.9797]
[1741552055913,0.98702071,2041.9,2041.6,4.18757]
[1741552055914,0.97974,2041.8,2041.6,4.18757]
[1741552056503,0.00734071,2041.9,2041.6,3.2078]
[1741552056709,0.00734071,2041.9,2041.8,0.9797]
[1741552057412,0.98699071,2041.9,2041.8,0.9797]
[1741552057609,0.00734071,2041.9,2041.8,0.9797]
[1741552058001,0.98699071,2041.9,2041.8,0.9797]
[1741552058207,0.00734071,2041.9,2041.8,0.9797]
[1741552058509,0.00734071,2041.9,2041.8,4.9797]
[1741552058709,1.5358,2042.4,2042.2,0.97948]
[1741552059102,2.51524,2042.4,2042.2,0.97946]
[1741552059308,0.97929,2042.7,2042.3,3.2078]
[1741552059608,3.13980534,2043.0,2042.7,0.97924]
[1741552059609,1.5987,2042.9,2042.7,0.97924]
[1741552059811,2.57791,2042.9,2042.7,0.97924]